Workbook

Sheet MAYO
A1: AUTOMOTORES YOSHIVAL S.A.C.
B2: RUC: 20408104638 | E2: PLANILLA DE MES DE MAYO DEL 2018
A3: BUSCADOR DE SEDE
A4: Nº | B4: APELLIDOS Y NOMBRE | C4: DNI | D4: SEDE | E4: FACHA DE INGRESOS | F4: FECHA DE NACIM. | G4: INCORPORACION AL SISTEMA PRIVADO DE PENSIONES - AFP | J4: CARGO | K4: HORAS EXTRAS | L4: FERIADOS | M4: COMISION | N4: REMUNERACION MENSUAL | O4: ASIG. FAMILIAR | P4: COMISIONES | Q4: FALTAS | R4: DESCUENTOS POR TARDANZAS Y OTROS | S4: REMUNERACION TOTAL | T4: DESCUESTOS DE LEY | Z4: APORTE DEL EMPLEADOR | AA4: CTS | AB4: BASICO | AC4: ADICIONAL | AD4: NETO A PAGAR | AE4: NUMERO DE CUENTA DE TRABAJADOR | AF4: FIRMA DE RECEPCION (RECIBI CONFORME)
T5: S.N.P. | U5: SISTEMA PRIVADO DE PENSIONES - AFP | X5: Renta 5° Categ. | Y5: TOTAL DESCUENTOS DE LEY | Z5: ESSALUD
G6: FECHA | H6: TIPO D´AFP | I6: CUSPP | T6: 0.13 | U6: APOR. OBLIG. | V6: COMISION | W6: PRIMA DE SEG. | Z6: 0.09
A7: 01 | B7: CARLOS ENRIQUE CHIGNE SALDIVAR | C7: 18113541 | D7: HUARAZ | E7: 2008-02-04 | F7: 1969-11-05 | H7: PRIMA | I7: 255101CCSGD7 | J7: GERENTE GENERAL | N7: 930 | O7: 93 | Q7: =HUARAZ!B36 -> 217 | S7: =+N7+O7-R7+P7-Q7 -> 806 | U7: =S7*10% -> 80.6 | V7: 1.84 | W7: =S7*1.36% -> 10.9616 | Y7: =SUM(T7:X7) -> 93.4016 | Z7: =+S7*9% -> 72.54 | AA7: =+S7*8.33/100 -> 67.1398 | AB7: =+S7-Y7 -> 712.5984 | AC7: 1150 | AD7: =AB7+AC7 -> 1862.5984 | AE7: 375-90387954-0-19
A8: 02 | B8: MELODY JENNY MAMANI MEDNA | C8: 44990512 | D8: HUARAZ | E8: 2012-02-01 | F8: 1988-02-03 | H8: ONP | J8: SECRETARIA | N8: 930 | O8: 93 | Q8: =HUARAZ!C36 -> 155 | S8: =+N8+O8-R8+P8-Q8+M8+K8+L8 -> 868 | T8: =+S8*13% -> 112.84 | Y8: =SUM(T8:X8) -> 112.84 | Z8: =+S8*9% -> 78.12 | AA8: =+S8*8.33/100 -> 72.3044 | AB8: =+S8-Y8 -> 755.16 | AC8: 650 | AD8: =AB8+AC8 -> 1405.16 | AE8: 375-90388079-0-45
A9: 03 | B9: YULI CECILIA PRUDENCIO HUANUCO | C9: 46571513 | D9: HUARAZ | E9: 2016-04-01 | F9: 1990-10-01 | H9: ONP | J9: SECRETARIA | N9: 930 | O9: 0 | Q9: =HUARAZ!D36 -> 248 | S9: 682 | T9: =+S9*13% -> 88.66 | Y9: 88.66 | Z9: 61.38 | AA9: 56.8106 | AB9: 593.34 | AC9: 450 | AD9: 1043.34 | AE9: 375-90388101-0-68
A10: 04 | B10: RUSSEL ACUÑA VEGA | C10: 74498493 | D10: HUARAZ | E10: 2018-03-01 | F10: 1997-02-23 | H10: ONP | J10: MECANICO | N10: 930 | O10: 0 | Q10: =HUARAZ!E36 -> 155 | S10: 775 | T10: =+S10*13% -> 100.75 | Y10: 100.75 | Z10: 69.75 | AA10: 64.5575 | AB10: 674.25 | AC10: 200 | AD10: 874.25 | AE10: 375-90389230-0-08
A11: 05 | B11: DIEGO TEODORO CERRUDO VALVERDE | C11: 70115551 | D11: HUARAZ | E11: 2018-05-01 | F11: 1994-03-24 | H11: ONP | J11: MECANICO | N11: 930 | O11: 0 | Q11: =HUARAZ!F36 -> 248 | S11: 682 | T11: =+S11*13% -> 88.66 | Y11: 88.66 | Z11: 61.38 | AA11: 56.8106 | AB11: 593.34 | AC11: 370 | AD11: =AB11+AC11 -> 963.34 | AE11: 375-90641497-0-23
A12: 06 | B12: MERCEDES ELIZABETH JAMANCA BARRENECHEA | C12: 40334338 | D12: HUARAZ | E12: 2018-05-01 | F12: 1979-11-04 | H12: ONP | J12: PERSONAL DE LIMPIEZA | N12: 930 | O12: 93 | Q12: =HUARAZ!G36 -> 155 | S12: 868 | T12: =+S12*13% -> 112.84 | Y12: 112.84 | Z12: 78.12 | AA12: 72.3044 | AB12: 755.16 | AC12: 440 | AD12: 1195.16 | AE12: 375-90388337-0-06
A13: 07 | B13: JOSE JHONATAN VENTURA ACEVEDO | C13: 43744245 | D13: HUARAZ | E13: 2018-03-01 | F13: 1986-02-16 | H13: PROFUTURO | I13: 614571JVATV3 | J13: VENDEDOR | N13: 930 | O13: 93 | Q13: =HUARAZ!H36 -> 217 | S13: 806 | U13: =S13*10% -> 80.6 | V13: 10.95 | W13: 13.91 | Y13: 105.46 | Z13: 72.54 | AA13: 67.1398 | AB13: 700.54 | AD13: 700.54 | AE13: 375-90388226-0-94
A14: 08 | B14: PEDRO ALEJANDRO ULLOA CHIGNE | C14: 72809837 | D14: HUACHO | E14: 2016-12-01 | F14: 1993-03-06 | H14: PROFUTURO | I14: 340321PUCOG3 | J14: VENDEDOR | N14: 930 | O14: 93 | Q14: =HUACHO!B36 -> 186 | S14: 837 | U14: =S14*10% -> 83.7 | V14: 10.95 | W14: 13.91 | Y14: 108.56 | Z14: 75.33 | AA14: 69.7221 | AB14: 728.44 | AD14: 728.44 | AE14: 375-90388534-0-05
A15: 09 | B15: KHRYZZIA ARLENNE MERCADO ALBA | C15: 45417785 | D15: HUARAZ | E15: 2017-12-01 | F15: 1988-02-06 | H15: PRIMA | I15: 321770KMACA4 | J15: SECRETARIA | N15: 930 | O15: 0 | Q15: =HUARAZ!I36 -> 217 | S15: 713 | U15: =S15*10% -> 71.3 | V15: 1.67 | W15: 12.65 | Y15: 85.62 | Z15: 64.17 | AA15: 59.3929 | AB15: 627.38 | AC15: 870 | AD15: 1497.38 | AE15: 375-90388386-0-55
A16: 10 | B16: GERARDO ANTONIO VENTOCILLA PALOMARES | C16: 41037836 | D16: HUACHO | E16: 2017-12-01 | F16: 1981-09-30 | G16: MIXTA/SALDO | H16: PROFUTURO | J16: PERSONAL DE LIMPIEZA | N16: 930 | O16: 93 | Q16: =HUACHO!C36 -> 93 | S16: 930 | U16: =+S16*0.1 -> 93 | V16: 10.95 | W16: 13.91 | Y16: =SUM(T16:X16) -> 117.86 | Z16: =+S16*9% -> 83.7 | AA16: =+S16*8.33/100 -> 77.469 | AB16: =+S16-Y16 -> 812.14 | AC16: 330 | AD16: 1142.14 | AE16: 375-90388762-0-35
A17: TOTAL MENSUAL -MAYO-2018 | K17: =SUM(K7:K16) -> 0 | L17: 0 | M17: 0 | N17: 9300 | O17: 558 | P17: 0 | Q17: 1891 | R17: 0 | S17: 7967 | T17: 503.75 | U17: 409.2 | V17: 36.36 | W17: 65.3416 | X17: 0 | Y17: 1014.6516 | Z17: 717.03 | AA17: 663.6511 | AB17: 6952.3484 | AD17: =SUM(AD7:AD16) -> 11412.3484
P20: =+A20 -> 0
D27: HUACHO
D28: HUARAZ
D29: IR A AYOSHIVAL.COM

Sheet HUACHO
A1: HUACHO
B2: PEDRO ULLOA | C2: GERARDO VENTOCILLA
A3: DIA 1 | B3: A | C3: A
A4: DIA 2 | B4: A | C4: A
A5: DIA 3 | B5: F | C5: A
A6: DIA 4 | B6: A | C6: A
A7: DIA 5 | B7: A | C7: A
A8: DIA 6 | B8: F | C8: A
A9: DIA 7 | B9: A | C9: A
A10: DIA 8 | B10: A | C10: A
A11: DIA 9 | B11: A | C11: A
A12: DIA 10 | B12: F | C12: A
A13: DIA 11 | B13: A | C13: A
A14: DIA 12 | B14: A | C14: A
A15: DIA 13 | B15: A | C15: F
A16: DIA 14 | B16: F | C16: A
A17: DIA 15 | B17: A | C17: A
A18: DIA 16 | B18: A | C18: A
A19: DIA 17 | B19: A | C19: A
A20: DIA 18 | B20: A | C20: A
A21: DIA 19 | B21: A | C21: F
A22: DIA 20 | B22: F | C22: A
A23: DIA 21 | B23: A | C23: A
A24: DIA 22 | B24: A | C24: A
A25: DIA 23 | B25: A | C25: A
A26: DIA 24 | B26: A | C26: A
A27: DIA 25 | B27: A | C27: A
A28: DIA 26 | B28: A | C28: A
A29: DIA 27 | B29: A | C29: A
A30: DIA 28 | B30: A | C30: F
A31: DIA 29 | B31: A | C31: A
A32: DIA 30 | B32: F | C32: A
A33: DIA 31 | B33: A | C33: A
A34: TOTAL FATAS | B34: =COUNTIF(B3:B33,"F") -> 6 | C34: =COUNTIF(C3:C33,"F") -> 3
A35: TOTAL ASISTENCIAS | B35: =COUNTIF(B3:B33,"A") -> 25 | C35: =COUNTIF(C3:C33,"A") -> 28
A36: TOTAL A DESCONTAR | B36: =31*B34 -> 186 | C36: =31*C34 -> 93

Sheet HUARAZ
A1: HUARAZ
B2: CARLOS CHIGNE | C2: MELODY MAMANI | D2: YULI PRUDENCIO | E2: RUSSEL ACUÑA | F2: DIEGO CERRUDO | G2: MERCEDES JAMANCA | H2: JOSE VENTURA | I2: KHRYZZIA MERCADO
A3: DIA 1 | B3: A | C3: A | D3: A | E3: A | F3: A | G3: A | H3: A | I3: A
A4: DIA 2 | B4: A | C4: A | D4: A | E4: A | F4: A | G4: A | H4: A | I4: A
A5: DIA 3 | B5: F | C5: A | D5: F | E5: A | F5: F | G5: A | H5: F | I5: F
A6: DIA 4 | B6: A | C6: A | D6: A | E6: A | F6: A | G6: A | H6: A | I6: A
A7: DIA 5 | B7: A | C7: A | D7: A | E7: A | F7: A | G7: A | H7: A | I7: A
A8: DIA 6 | B8: F | C8: A | D8: F | E8: A | F8: F | G8: A | H8: F | I8: F
A9: DIA 7 | B9: A | C9: A | D9: A | E9: A | F9: A | G9: A | H9: A | I9: A
A10: DIA 8 | B10: A | C10: A | D10: F | E10: F | F10: F | G10: F | H10: A | I10: A
A11: DIA 9 | B11: A | C11: A | D11: A | E11: A | F11: A | G11: A | H11: A | I11: F
A12: DIA 10 | B12: F | C12: A | D12: F | E12: A | F12: F | G12: A | H12: F | I12: A
A13: DIA 11 | B13: A | C13: A | D13: A | E13: A | F13: A | G13: A | H13: A | I13: A
A14: DIA 12 | B14: A | C14: A | D14: A | E14: A | F14: A | G14: A | H14: F | I14: A
A15: DIA 13 | B15: A | C15: F | D15: A | E15: F | F15: A | G15: F | H15: A | I15: F
A16: DIA 14 | B16: F | C16: A | D16: F | E16: A | F16: F | G16: A | H16: F | I16: A
A17: DIA 15 | B17: A | C17: A | D17: A | E17: A | F17: A | G17: F | H17: A | I17: A
A18: DIA 16 | B18: A | C18: F | D18: F | E18: F | F18: A | G18: A | H18: A | I18: A
A19: DIA 17 | B19: A | C19: A | D19: A | E19: A | F19: A | G19: A | H19: A | I19: A
A20: DIA 18 | B20: A | C20: A | D20: A | E20: A | F20: A | G20: A | H20: A | I20: A
A21: DIA 19 | B21: A | C21: F | D21: A | E21: F | F21: A | G21: F | H21: A | I21: F
A22: DIA 20 | B22: F | C22: A | D22: F | E22: A | F22: F | G22: A | H22: F | I22: A
A23: DIA 21 | B23: A | C23: A | D23: A | E23: A | F23: A | G23: A | H23: A | I23: A
A24: DIA 22 | B24: A | C24: A | D24: A | E24: A | F24: A | G24: A | H24: A | I24: A
A25: DIA 23 | B25: A | C25: A | D25: A | E25: A | F25: A | G25: A | H25: A | I25: A
A26: DIA 24 | B26: F | C26: F | D26: A | E26: A | F26: A | G26: A | H26: A | I26: A
A27: DIA 25 | B27: A | C27: A | D27: A | E27: A | F27: A | G27: A | H27: A | I27: A
A28: DIA 26 | B28: A | C28: A | D28: A | E28: A | F28: F | G28: A | H28: A | I28: F
A29: DIA 27 | B29: A | C29: A | D29: A | E29: A | F29: A | G29: A | H29: A | I29: A
A30: DIA 28 | B30: A | C30: F | D30: A | E30: F | F30: A | G30: F | H30: A | I30: F
A31: DIA 29 | B31: A | C31: A | D31: A | E31: A | F31: A | G31: A | H31: A | I31: A
A32: DIA 30 | B32: F | C32: A | D32: F | E32: A | F32: F | G32: A | H32: F | I32: A
A33: DIA 31 | B33: A | C33: A | D33: A | E33: A | F33: A | G33: A | H33: A | I33: A
A34: TOTAL FATAS | B34: =COUNTIF(B3:B33,"F") -> 7 | C34: 5 | D34: 8 | E34: 5 | F34: 8 | G34: 5 | H34: 7 | I34: 7
A35: TOTAL ASISTENCIAS | B35: =COUNTIF(B3:B33,"A") -> 24 | C35: 26 | D35: 23 | E35: 26 | F35: 23 | G35: 26 | H35: 24 | I35: 24
A36: TOTAL A DESCONTAR | B36: =31*B34 -> 217 | C36: =31*C34 -> 155 | D36: =31*D34 -> 248 | E36: 155 | F36: 248 | G36: 155 | H36: 217 | I36: 217
